Workbook

Sheet Feuil1
C1: TABLEAU de CALCUL TDC | G1: inserez votre position au-sein de l'alliance Pour les Chasseur le code sera : AAou BB ou CC Pour les Passeurs le code sera : A.1 - A.2 - A.3 - A.4 - A.5 - A.6 - B.1 - B.2 - B.3 - B.4 - B.5 - B.6 - C.1 - C.2 - C.3 - C.4 - C.5 - C.6 Pour les Greniers le code sera : GA GB GC | H1: AA | I1: Je souhaite à ce que lorsque l'on écrit AA les cases C22 C24 C26 C28 G22 G24 G26 C31 soit de la même couleur que la grosse case ainsi de suite si on écrit BB etc | J1: soit
C2: TDC Grenier MERE | D2: TDC Grenier MERE | E2: TDC Grenier MERE | G2: insérez le TDC du Grenier MERE si-dessous | H2: insérez votre TDC si dessous
C3: =G3 -> 740000 | D3: =C3 -> 740000 | E3: =C3 -> 740000 | G3: 740000 | H3: 230000 | J3: BB=D31=D28=D26=D24=D22=H22=H24=H26=H CC=E31;E28;E26;E24;E22;I22;I24;I26;I28 A.1=C32;C28;C26;C24;C24;C26;C28;C9;G9 etc
C4: VALEURS MINIMALES | G4: VALEURS MAXIMALES
C5: TDC GRENIER A | D5: TDC GRENIER B | E5: TDC GRENIER C | G5: TDC GRENIER A | H5: TDC GRENIER B | I5: TDC GRENIER C
C6: =ROUND(C3*50%,0) -> 370000 | D6: =ROUND(C6*60%,0) -> 222000 | E6: =ROUND(D6*60%,0) -> 133200 | G6: =ROUND(G3*150%,0) -> 1110000 | H6: =ROUND(G6*60%,0) -> 666000 | I6: =ROUND(H6*60%,0) -> 399600
C8: TDC PASSEUR minimum A.1 | D8: TDC PASSEUR minimum B.1 | E8: TDC PASSEUR minimum C.1 | G8: TDC PASSEUR maximum A.1 | H8: TDC PASSEUR maximum B.1 | I8: TDC PASSEUR maximum C.1
C9: =ROUND(C6*50%,0) -> 185000 | D9: =ROUND(D6*50%,0) -> 111000 | E9: =ROUND(E6*50%,0) -> 66600 | G9: =ROUND(G6*50%,0) -> 555000 | H9: =ROUND(H6*50%,0) -> 333000 | I9: =ROUND(I6*50%,0) -> 199800
C10: TDC PASSEUR minimum A.2 | D10: TDC PASSEUR minimum B.2 | E10: TDC PASSEUR minimum C.2 | G10: TDC PASSEUR maximum A.2 | H10: TDC PASSEUR maximum B.2 | I10: TDC PASSEUR maximum C.2
C11: =ROUND(C9*50%,0) -> 92500 | D11: =ROUND(D9*50%,0) -> 55500 | E11: =ROUND(E9*50%,0) -> 33300 | G11: =ROUND(G9*50%,0) -> 277500 | H11: =ROUND(H9*50%,0) -> 166500 | I11: =ROUND(I9*50%,0) -> 99900
C12: TDC PASSEUR minimum A.3 | D12: TDC PASSEUR minimum B.3 | E12: TDC PASSEUR minimum C.3 | G12: TDC PASSEUR maximum A.3 | H12: TDC PASSEUR maximum B.3 | I12: TDC PASSEUR maximum C.3
C13: =ROUND(C11*50%,0) -> 46250 | D13: =ROUND(D11*50%,0) -> 27750 | E13: =ROUND(E11*50%,0) -> 16650 | G13: =ROUND(G11*50%,0) -> 138750 | H13: =ROUND(H11*50%,0) -> 83250 | I13: =ROUND(I11*50%,0) -> 49950
C14: TDC PASSEUR minimum A.4 | D14: TDC PASSEUR minimum B.4 | E14: TDC PASSEUR minimum C.4 | G14: TDC PASSEUR maximum A.4 | H14: TDC PASSEUR maximum B.4 | I14: TDC PASSEUR maximum C.4
C15: =ROUND(C13*50%,0) -> 23125 | D15: =ROUND(D13*50%,0) -> 13875 | E15: =ROUND(E13*50%,0) -> 8325 | G15: =ROUND(G13*50%,0) -> 69375 | H15: =ROUND(H13*50%,0) -> 41625 | I15: =ROUND(I13*50%,0) -> 24975
C16: TDC PASSEUR minimum A.5 | D16: TDC PASSEUR minimum B.5 | E16: TDC PASSEUR minimum C.5 | G16: TDC PASSEUR maximum A.5 | H16: TDC PASSEUR maximum B.5 | I16: TDC PASSEUR maximum C.5
C17: =ROUND(C15*50%,0) -> 11563 | D17: =ROUND(D15*50%,0) -> 6938 | E17: =ROUND(E15*50%,0) -> 4163 | G17: =ROUND(G15*50%,0) -> 34688 | H17: =ROUND(H15*50%,0) -> 20813 | I17: =ROUND(I15*50%,0) -> 12488
C18: TDC PASSEUR minimum A.6 | D18: TDC PASSEUR minimum B.6 | E18: TDC PASSEUR minimum C.6 | G18: TDC PASSEUR maximum A.6 | H18: TDC PASSEUR maximum B.6 | I18: TDC PASSEUR maximum C.6
C19: =ROUND(C17*50%,0) -> 5782 | D19: =ROUND(D17*50%,0) -> 3469 | E19: =ROUND(E17*50%,0) -> 2082 | G19: =ROUND(G17*50%,0) -> 17344 | H19: =ROUND(H17*50%,0) -> 10407 | I19: =ROUND(I17*50%,0) -> 6244
C21: TDC CHASSEUR minimum AA.1 | D21: TDC CHASSEUR minimum BB.1 | E21: TDC CHASSEUR minimum CC.1 | G21: TDC CHASSEUR maximum AA.1 | H21: TDC CHASSEUR maximum BB.1 | I21: TDC CHASSEUR maximum CC.1
C22: =ROUND(C19*50%,0) -> 2891 | D22: =ROUND(D19*50%,0) -> 1735 | E22: =ROUND(E19*50%,0) -> 1041 | G22: =ROUND(G19*50%,0) -> 8672 | H22: =ROUND(H19*50%,0) -> 5204 | I22: =ROUND(I19*50%,0) -> 3122
C23: TDC CHASSEUR minimum AA.2 | D23: TDC CHASSEUR minimum BB.2 | E23: TDC CHASSEUR minimum CC.2 | G23: TDC CHASSEUR maximum AA.2 | H23: TDC CHASSEUR maximum BB.2 | I23: TDC CHASSEUR maximum CC.2
C24: =C22 -> 2891 | D24: =D22 -> 1735 | E24: =E22 -> 1041 | G24: =G22 -> 8672 | H24: =H22 -> 5204 | I24: =I22 -> 3122
C25: TDC CHASSEUR minimum AA.3 | D25: TDC CHASSEUR minimum BB.3 | E25: TDC CHASSEUR minimum CC.3 | G25: TDC CHASSEUR maximum AA.3 | H25: TDC CHASSEUR maximum BB.3 | I25: TDC CHASSEUR maximum CC.3
C26: =C24 -> 2891 | D26: =D24 -> 1735 | E26: =E24 -> 1041 | G26: =G24 -> 8672 | H26: =H24 -> 5204 | I26: =I24 -> 3122
C27: TDC CHASSEUR minimum AA.4 | D27: TDC CHASSEUR minimum BB.4 | E27: TDC CHASSEUR minimum CC.4 | G27: TDC CHASSEUR maximum AA.4 | H27: TDC CHASSEUR maximum BB.4 | I27: TDC CHASSEUR maximum CC.4
C28: =C26 -> 2891 | D28: =D26 -> 1735 | E28: =E26 -> 1041 | G28: =G26 -> 8672 | H28: =H26 -> 5204 | I28: =I26 -> 3122
C29: VOTRE TDC
C30: IL MANQUE (-) ou J'AI EN TROP | D30: IL MANQUE (-) ou J'AI EN TROP | E30: IL MANQUE (-) ou J'AI EN TROP
A31: Chasseur AA/BB/CC | B31: =H3 -> 230000 | C31: =B31-C28 -> 227109 | D31: =B31-D28 -> 228265 | E31: =B31-E28 -> 228959
A32: Passeur A.1/B.1/C.1 | B32: =B31 -> 230000 | C32: =B32-C9 -> 45000 | D32: =B32-D9 -> 119000 | E32: =B32-E9 -> 163400
A33: Passeur A.2/B.2/.C2 | B33: =B31 -> 230000 | C33: =B33-C11 -> 137500 | D33: =B33-D11 -> 174500 | E33: =B33-E11 -> 196700
A34: Passeur A.3/B.3/C.3 | B34: =B31 -> 230000 | C34: =B34-C13 -> 183750 | D34: =B34-D13 -> 202250 | E34: =B34-E13 -> 213350
A35: Passeur A.4/B.4/.C4 | B35: =B31 -> 230000 | C35: =B35-C15 -> 206875 | D35: =B35-D15 -> 216125 | E35: =B35-E15 -> 221675
A36: Passeur A.5/B.5/C.5 | B36: =B31 -> 230000 | C36: =B36-C17 -> 218437 | D36: =B36-D17 -> 223062 | E36: =B36-E17 -> 225837
A37: Passeur A6./B.6/.C6 | B37: =B31 -> 230000 | C37: =B37-C19 -> 224218 | D37: =B37-D19 -> 226531 | E37: =B37-E19 -> 227918
A38: Grenier A/B/C | B38: =B31 -> 230000 | C38: =B38-C6 -> -140000 | D38: =B38-D6 -> 8000 | E38: =B38-E6 -> 96800

Sheet Listes
A1: Code | B1: Liste adresses
A2: AA | B2: C22;C24;C26;C28;G22;G24;G26;C31
A3: A.1 | B3: C32;C28;C26;C24;C24;C26;C28;C9;G9
A4: BB | B4: D31;D28;D26;D24;D22;H22;H24;H26
A5: CC | B5: E31;E28;E26;E24;E22;I22;I24;I26;I28

Sheet Feuil3
